Cogmind - Beta 11 @@@ ROGUE MODE // 2022.04.10 @ 11:02:44 Player: Heavyrisk Result: Destroyed by S-43 Plague with Heavy Machine Gun Performance ------------- Evolutions (7) 3500 Regions Visited (15) 3000 Robots Destroyed (329) 1645 Value Destroyed (15550) 15550 Prototype IDs (21) 420 Alien Tech Used (0) 0 Bonus (5645) 5645 TOTAL SCORE: 29760 Bonus ------- High Alert Combat Kills 3431 Follower Combat Kills 161 Entered Garrisons 800 Used RIF Installer 1500 Friendly Fire -247 Cogmind --------- Core Integrity 0/1300 Matter 95/300 Energy 100/100 System Corruption 44% Temperature Cool (0) Movement Core (50) Location -3/Garrison Parts ------- > --- POWER (2) -------- (None) > --- PROPULSION (6) --- (None) > --- UTILITY (10) ----- (None) > --- WEAPON (3) ------- (None) > --- INVENTORY (5) ---- Flexi-carbon Leg Advanced Terrain Scanner Advanced Remote Datajack Power Sword Enhanced Force Lance Peak State ------------ > --- POWER ------------ Particle Reactor Micro Antimatter Reactor > --- PROPULSION ------- Improved Heavy Treads Heavy Siege Treads Armored Heavy Treads > --- UTILITY ---------- Advanced Heat Sink Advanced Heat Sink High-capacity Storage Unit Advanced Energy Well Advanced Energy Well Advanced Target Analyzer Advanced Target Analyzer Heavy Reflective Plating Advanced Force Field > --- WEAPON ----------- Centrium Greatsword Enhanced Force Lance > --- INVENTORY -------- Antimatter Reactor Particle Reactor Improved Heavy Treads Advanced Coolant Injector Advanced Matter Compressor Advanced Sensor Array Advanced Terrain Scanner Advanced Weapon Cycler Long-range Tractor Beam Nova Cannon Null Cannon Hardcell Cannon Hardcell Cannon Neutron Missile Launcher Advanced Datajack Advanced Remote Datajack Centrium Greatsword [Rating: 156] Favorites ----------- Power F-cell Engine Engine F-cell Engine Power Core Light Fission Core Reactor Particle Reactor Propulsion Flexi-carbon Leg Treads Medium Treads Leg Flexi-carbon Leg Wheel Compact Wheel Hover Unit Gravmag System Flight Unit Field Propulsion Array Utility High-capacity Storage Unit Device Advanced Heat Sink Storage High-capacity Storage Unit Processor Improved Target Analyzer Hackware Relay Coupler [NC] Protection Layered Light Armor Plating Weapon Power Sword Energy Gun Phase Gun Energy Cannon Advanced Plasma Cannon Ballistic Gun Assault Rifle Ballistic Cannon Flak Cannon Launcher Missile Launcher Special Weapon Advanced Remote Datajack Impact Weapon Heavy Mace Slashing Weapon Power Sword Piercing Weapon Enhanced Force Lance Special Melee Weapon Advanced Datajack Build | -11 -10 -9 -8 -8 -8 -7 -6 -5 -5 -4 -4 -4 -3 -3 -3 ------- Run | Scr Mat Mat Mat Gar Mat Fac Fac Fac Gar Fac Gar Fac Res Tes Gar Slots Evolved 14 | . . 2 2 . . 2 2 2 . 2 . . 2 . . Power 1 | . . . . . . . . . . 1 . . . . . Propulsion 4 | . . 2 1 . . . . . . 1 . . . . . Utility 8 | . . . 1 . . 2 1 2 . . . . 2 . . Weapon 1 | . . . . . . . 1 . . . . . . . . Parts Attached 563 | 7 4 6 9 10 24 54 39 24 24 19 23 69 181 61 9 Power 40 | 1 1 1 . . 3 4 2 . 2 2 . 5 12 6 1 Engine 11 | 1 1 1 . . 3 1 1 . 1 2 . . . . . Core 6 | . . . . . . 3 . . 1 . . 1 1 . . Reactor 23 | . . . . . . . 1 . . . . 4 11 6 1 Propulsion 136 | 2 1 2 3 5 8 14 7 2 6 3 4 19 44 15 1 Treads 37 | . . . 2 3 6 8 . . . . 1 5 9 2 1 Leg 79 | 2 1 2 1 2 . 5 7 2 6 3 3 7 25 13 . Wheel 15 | . . . . . 2 . . . . . . 5 8 . . Hover 4 | . . . . . . 1 . . . . . 1 2 . . Flight 1 | . . . . . . . . . . . . 1 . . . Utility 203 | 2 2 1 2 3 8 22 14 15 8 7 7 22 61 28 1 Device 116 | 1 . . . 2 2 17 6 7 2 3 2 16 40 18 . Storage 20 | 1 1 . 1 . 1 . 2 2 . 1 . 1 5 4 1 Processor 14 | . . . . . . 2 1 2 . . . 2 5 2 . Hackware 16 | . . . . . . 1 2 2 3 1 2 1 4 . . Protection 37 | . 1 1 1 1 5 2 3 2 3 2 3 2 7 4 . Artifact . | . . . . . . . . . . . . . . . . Weapon 184 | 2 . 2 4 2 5 14 16 7 8 7 12 23 64 12 6 Energy Gun 7 | . . . . . . . . . . . . . 3 3 1 Energy Cannon 12 | . . . . . . . . . 2 . 2 4 . 4 . Ballistic Gun 11 | 2 . . . . . . . . . . . . 9 . . Ballistic Cannon 35 | . . 2 3 1 3 5 3 . . 1 1 6 7 1 2 Launcher 16 | . . . 1 . . . . 1 . . 2 3 5 1 3 Special Weapon 21 | . . . . . . . . . 1 1 3 5 11 . . Impact Weapon 17 | . . . . 1 2 5 1 . 1 . . 1 6 . . Slashing Weapon 34 | . . . . . . . 6 4 1 2 3 3 14 1 . Piercing Weapon 11 | . . . . . . 1 1 . . . 1 . 6 2 . Special Melee Weapon 20 | . . . . . . 3 5 2 3 3 . 1 3 . . Unidentified Prototypes 16 | . . . 1 . . . . . . 3 . 1 4 7 . Corrupted Parts 4 | . . . . . 1 3 . . . . . . . . . System Corruption 28 | . . . . . 2 26 . . . . . . . . . Parts Lost 125 | . 1 . 2 4 3 10 10 5 3 1 3 17 40 23 3 Power 15 | . . . . . . 2 . . . . . 3 7 3 . Propulsion 61 | . 1 . 2 4 2 6 4 2 1 1 3 8 19 6 2 Utility 34 | . . . . . . . 4 2 2 . . 3 11 11 1 Weapon 15 | . . . . . 1 2 2 1 . . . 3 3 3 . Highest Loss Streak 11 | . 1 . 2 3 2 3 3 3 1 1 2 7 11 11 2 To Critical Strikes . | . . . . . . . . . . . . . . . . Average Slot Usage (%) 94 | . 100 99 93 99 99 97 99 96 93 93 96 97 93 79 89 Engine 3 | . 14 11 9 9 9 4 2 5 1 4 5 4 . . . Core 1 | . . . . . . 1 1 . 3 5 5 1 1 . . Reactor 3 | . . . . . . . 2 . . . . 3 7 8 9 Treads 10 | . . . 5 16 37 28 . . . . . 3 2 9 3 Leg 18 | . 28 43 32 28 . 7 32 29 29 31 28 19 18 8 19 Wheel 1 | . . . . . 6 . . . . . . 6 2 . . Device 11 | . 4 . . 8 9 12 10 6 2 6 6 11 18 17 16 Storage 7 | . 14 11 9 9 9 7 6 8 5 5 5 5 4 10 16 Processor 6 | . . . . . . 8 10 9 8 5 5 8 8 6 4 Hackware 5 | . . . . . . . 4 10 7 12 16 13 8 . . Protection 6 | . 9 11 18 9 9 8 6 4 13 5 6 1 2 4 4 Ballistic Cannon 5 | . . 20 18 17 11 7 5 . . . 1 4 3 . 3 Impact Weapon 1 | . . . . . 6 4 3 . 1 . . . . . . Slashing Weapon 3 | . . . . . . . 6 15 7 8 6 2 2 2 . Piercing Weapon 1 | . . . . . . 1 1 . . . . . 3 2 . Naked Turns 4 | . . . . . . . . . . . . . . . 4 Heaviest Build 138 | 15 30 38 63 63 61 73 80 82 97 100 95 104 127 138 124 Greatest Support 225 | 20 20 40 45 63 135 135 90 87 92 115 118 100 225 210 100 Greatest Overweight (x) 5 | . 1 . 1 2 2 1 1 . 1 . 1 5 3 1 1 Average Overweight (x) . | . . . . . . . . . . . . 1 . . . Largest Inventory Capacity 20 | 8 15 15 20 20 20 20 20 20 20 20 20 20 20 20 20 Average Capacity 19 | 7 14 15 15 20 20 20 20 20 20 20 20 20 20 20 19 Most Carried 20 | 4 15 15 18 20 20 20 20 20 20 20 20 20 20 20 20 Average Carried 18 | 1 10 14 15 19 19 19 19 19 19 19 19 19 19 17 16 Final Capacity 20 | 8 15 15 20 20 20 20 20 20 20 20 20 20 20 20 5 Final Carried 20 | 4 15 15 18 20 20 20 20 20 20 20 20 20 20 19 5 Class Distribution -------------------- 50% | Scavenger-Mutant 22% | Mutant 17% | Bothacker-Mutant 5% | Scavenger-Gladiator Dominant Class ---------------- Mutant | -10/Materials Scavenger-Mutant | -9/Materials Scavenger-Mutant | -8/Materials Scavenger-Mutant | -8/Garrison Mutant | -8/Materials Mutant | -7/Factory Scavenger-Mutant | -6/Factory Scavenger-Mutant | -5/Factory Scavenger-Mutant | -5/Garrison Scavenger-Mutant | -4/Factory Bothacker-Mutant | -4/Garrison Bothacker-Mutant | -4/Factory Scavenger-Mutant | -3/Research Scavenger-Mutant | -3/Testing Scavenger-Mutant | -3/Garrison Resources | -11 -10 -9 -8 -8 -8 -7 -6 -5 -5 -4 -4 -4 -3 -3 -3 ----------- Run | Scr Mat Mat Mat Gar Mat Fac Fac Fac Gar Fac Gar Fac Res Tes Gar Matter Collected 10421 | 235 280 260 346 448 753 1036 394 253 332 206 343 1484 2869 1182 . Remotely 564 | 91 39 . . . 162 242 . . . . . . 30 . . Salvage Created 15545 | 66 318 233 410 363 969 1428 620 341 572 830 390 1228 5313 2464 . Parts 637 | 3 17 12 21 21 33 47 22 26 18 20 30 50 235 82 . Haulers Intercepted 6 | . . 2 2 . 1 . . . . 1 . . . . . Recyclers Shooed 13 | . 3 . 1 . 1 2 . . . . . 2 4 . . Parts Field Recycled . | . . . . . . . . . . . . . . . . Retrieved Matter . | . . . . . . . . . . . . . . . . Parts Self-Destructed . | . . . . . . . . . . . . . . . . Prevented . | . . . . . . . . . . . . . . . . Kills | -11 -10 -9 -8 -8 -8 -7 -6 -5 -5 -4 -4 -4 -3 -3 -3 ------- Run | Scr Mat Mat Mat Gar Mat Fac Fac Fac Gar Fac Gar Fac Res Tes Gar Combat Hostiles Destroyed 258 | . 6 3 6 14 20 24 12 12 11 6 12 27 68 33 4 Melee 103 | . . . . . 7 4 7 5 8 6 1 3 40 22 . Guns 14 | . 6 . . . . . . . . . . . 3 5 . Cannons 78 | . . 3 6 14 6 14 1 . 2 . 2 12 11 6 1 AOE 39 | . . . . . . . 1 7 . . 8 7 13 . 3 Classes Destroyed 18 | 1 1 3 . 4 3 3 . . . . 2 . 1 . . Worker 20 | . . 1 . . 5 3 1 . . 1 . 2 4 3 . Builder 8 | . . . . . 1 . . 1 . . . 3 3 . . Tunneler 1 | . . . . . 1 . . . . . . . . . . Hauler 6 | . . 2 2 . 1 . . . . 1 . . . . . Recycler 27 | 1 1 . 2 . 2 6 1 . . 2 . 3 8 1 . Mechanic 3 | . . . . . . 1 . . . . . . 1 1 . Operator 2 | . . . . . 1 . . . . . . 1 . . . Watcher 4 | . . . . . . 3 . . . . . . 1 . . Swarmer 59 | . . . . 3 3 3 4 7 4 . 5 14 12 . 4 Cutter 3 | . . . . . . . . . . . 3 . . . . Grunt 83 | . 6 . 4 6 9 11 5 . 5 4 . 3 18 12 . Brawler 6 | . . . . 1 . . . . 1 . . 1 2 1 . Duelist 8 | . . . . 1 1 . . . . . . . 3 3 . Protector 2 | . . . . . . . . . . . . . 2 . . Sentry 31 | . . 3 2 1 5 3 . . 1 . 2 2 6 6 . Hunter 13 | . . . . 2 2 2 . 1 . . . . 6 . . Programmer 51 | . . . . . . 5 3 4 . 2 1 7 18 11 . Behemoth 2 | . . . . . . . . . . . 1 . 1 . . Best Kill Streak 8 | 1 2 2 3 3 5 4 4 8 4 3 6 8 7 4 4 Combat Bots Only 7 | . 2 2 2 3 4 3 4 7 4 2 6 6 7 4 4 Max Kills in Single Turn 6 | 1 1 1 1 2 2 1 1 6 1 1 5 4 4 2 3 Gunslinging . | . . . . . . . . . . . . . . . . Exploded 5 | . . . . . . . 1 5 . . 5 3 4 . 3 Melee 2 | . . . . . 1 1 1 1 1 1 1 1 2 1 . Uniques/NPCs Destroyed . | . . . . . . . . . . . . . . . . Combat | -11 -10 -9 -8 -8 -8 -7 -6 -5 -5 -4 -4 -4 -3 -3 -3 -------- Run | Scr Mat Mat Mat Gar Mat Fac Fac Fac Gar Fac Gar Fac Res Tes Gar Damage Taken 27376 | . 378 80 695 765 1219 2737 1644 786 785 714 486 3053 7024 6215 795 Core 2549 | . 90 10 89 50 138 172 115 18 60 42 84 359 617 490 215 Absorbed by Shields 3740 | . . . . . . . . 42 38 . . . 1516 2144 . Reduced by Siege Mode 19 | . . . . . . . . . . . . . . 19 . Redirected to Shielding 299 | . 18 4 19 11 28 . . . . . . . 219 . . Regen/Repaired (Parts) 453 | . . . . . 119 . 97 . . . . . 237 . . Core Remaining (%) 77 | 100 64 97 . . 49 75 86 . 92 . . 57 . . . Volleys Fired 406 | 1 41 7 31 33 35 39 4 2 12 4 16 54 83 35 9 Largest 3 | 2 2 2 2 2 2 2 2 1 2 1 2 2 3 3 2 Hottest 306 | 40 40 78 88 88 88 96 96 36 163 98 163 163 224 306 218 Shots Fired 752 | 2 82 14 62 62 62 72 9 2 21 4 21 95 164 69 11 Gun 209 | 2 82 . . . . . . . . . . . 86 35 4 Cannon 502 | . . 14 62 62 62 72 9 . 21 1 17 87 59 34 2 Launcher 21 | . . . . . . . . 2 . . 2 5 7 . 5 Special 20 | . . . . . . . . . . 3 2 3 12 . . Kinetic 556 | 2 82 14 62 62 62 72 9 . . . 11 46 133 1 . Thermal 155 | . . . . . . . . . 21 1 6 41 12 68 6 Explosive 21 | . . . . . . . . 2 . . 2 5 7 . 5 Electromagnetic . | . . . . . . . . . . . . . . . . Robot Hit Streak 21 | 2 13 9 5 9 6 5 5 . 5 3 4 13 15 21 5 Robot Miss Streak 10 | . 3 1 4 10 8 3 3 2 1 1 3 6 4 2 1 Penetration Max 2 | . . . . . . . . . . . . . 2 . . Secondary Targets . | . . . . . . . . . . . . . . . . Shots Hit Robots 1033 | 2 58 12 40 51 93 99 46 23 37 25 16 98 280 147 6 Core Hits 483 | 2 16 7 23 64 47 26 13 16 13 10 14 46 124 58 4 Critical Kills 7 | . . . . . 4 1 . . . . 1 1 . . . Critical Parts Destroyed 30 | . 1 . . . 7 9 5 . . . . 3 5 . . Critical Strikes 158 | . 1 1 3 . 12 20 7 3 1 5 1 23 50 31 . Burn 4 | . . . . . . . . . . . . . . 4 . Meltdown 2 | . . . . . . . . . . . 1 1 . . . Destroy 7 | . 1 . . . . . . . . . . . 6 . . Blast 27 | . . 1 3 . 1 10 . . . . . 6 6 . . Smash 30 | . . . . . 11 10 5 . . . . 3 1 . . Sever 64 | . . . . . . . 1 3 1 5 . 13 19 22 . Impale 24 | . . . . . . . 1 . . . . . 18 5 . Melee Attacks 714 | . . . . 1 48 72 60 47 42 27 5 53 236 123 . Impact 168 | . . . . 1 48 69 17 . 3 . . 15 15 . . Slashing 360 | . . . . . . . 30 45 29 21 4 37 96 98 . Piercing 155 | . . . . . . 1 9 . . . . . 120 25 . Sneak Attacks 78 | . . . . . 6 13 5 1 7 11 . 4 27 4 . Combat Hostiles 28 | . . . . . 1 . . . 7 7 . . 13 . . Follow-up Attacks 81 | . . . . . . 2 7 7 4 4 2 8 35 12 . Damage Inflicted 45509 | 20 734 278 892 894 2569 3891 1889 1286 1417 1198 788 4065 15119 8727 1742 Guns 3431 | 20 732 . . . . . . . . . . . 1720 934 25 Cannons 11176 | . . 256 858 894 767 1326 144 . 349 . 331 2037 1909 2144 161 Explosions 6206 | . . . . . . . 224 484 . 101 366 850 2625 . 1556 Melee 24305 | . . . . . 1762 2492 1521 802 1055 1097 91 1157 8682 5646 . Ramming 391 | . 2 22 34 . 40 73 . . 13 . . 21 183 3 . Kinetic 9789 | 20 732 256 858 894 767 1326 144 . . . 267 1144 3337 44 . Thermal 4919 | . . . . . . . . . 349 101 64 893 292 3034 186 Explosive 6064 | . . . . . . . 224 484 . . 366 850 2584 . 1556 Electromagnetic 41 | . . . . . . . . . . . . . 41 . . Impact 5368 | . . . . . 1762 2492 455 . 136 . . 332 191 . . Slashing 12829 | . . . . . . . 869 802 919 1097 91 825 3681 4545 . Piercing 6108 | . . . . . . . 197 . . . . . 4810 1101 . Highest Corruption 44 | . . . . . 2 33 11 7 7 4 6 8 30 44 44 Average Corruption 12 | . . . . . 2 11 3 5 7 3 5 6 12 32 44 Corruption Purged 12 | . . . . . . 5 . . . . . . 7 . . Corruption Blocked . | . . . . . . . . . . . . . . . . Effects 399 | . . . . . 12 47 14 13 18 5 7 31 139 105 8 Message Errors 98 | . . . . . 3 11 4 3 3 . . 7 42 22 3 Matter Fused 87 | . . . . . 2 10 3 5 1 . 2 9 33 20 2 Heat Flow Errors 41 | . . . . . 1 6 3 1 1 . 2 1 14 12 . Energy Discharges 53 | . . . . . 2 9 1 1 3 2 1 7 14 12 1 Parts Rejected 7 | . . . . . . 1 . . . . . . 1 5 . Data Loss (minor) 56 | . . . . . 1 7 2 2 4 1 1 4 20 13 1 Data Loss (major) 19 | . . . . . 1 . . 1 1 2 1 . 8 5 . Misfires 7 | . . . . . 2 . 1 . 1 . . 2 . 1 . Alerts 8 | . . . . . . . . . 3 . . 1 4 . . Misdirections 15 | . . . . . . 3 . . . . . . 1 11 . Weapon Failures 8 | . . . . . . . . . 1 . . . 2 4 1 Overload Shots . | . . . . . . . . . . . . . . . . Overflow Damage 4464 | . . . . . 527 1086 492 125 65 103 28 421 1117 405 95 Projectiles 389 | . . . . . 12 23 . . . . 23 106 28 197 . Explosions 422 | . . . . . . . 16 69 . 52 5 106 79 . 95 Melee 3653 | . . . . . 515 1063 476 56 65 51 . 209 1010 208 . Knockbacks 120 | . . . 22 22 28 25 2 . 1 . 1 9 10 . . Impact 17 | . . . . . 6 5 2 . 1 . . . 3 . . Kinetic 90 | . . . 16 21 18 18 . . . . 1 9 7 . . Secondary 13 | . . . 6 1 4 2 . . . . . . . . . Self-Inflicted Damage 931 | . . . . . 12 . 170 . . 250 53 65 381 . . Shots 13 | . . . . . . . 2 . . 3 1 2 5 . . Rammed 6 | . . . . . 3 3 . . . . . . . . . Targets Rammed 36 | . 2 1 4 . 5 4 . . 1 . . 2 16 1 . Kicked 27 | . 2 1 4 . . . . . 1 . . 2 16 1 . Crushed 3 | . . . . . 2 1 . . . . . . . . . Highest Temperature 411 | . . 81 246 30 163 273 232 136 130 36 103 56 280 411 90 Average Temperature 80 | . . 24 110 12 73 77 88 71 45 36 67 17 68 125 40 Received Heat Transfer 4478 | . 204 51 405 324 387 669 315 9 263 18 9 360 501 891 72 Effects 3 | . . . . . . . . . . . . . . 3 . Shutdowns 2 | . . . . . . . . . . . . . . 2 . Energy Bleed 1 | . . . . . . . . . . . . . . 1 . Siege Activations 2 | . . . . . . . . . . . . . . 1 1 Total Turns 27 | . . . . . . . . . . . . . . 19 8 Longest Duration 19 | . . . . . . . . . . . . . . 19 8 Robots Corrupted . | . . . . . . . . . . . . . . . . Combat Hostiles . | . . . . . . . . . . . . . . . . Parts Fried 34 | . . . . . 15 12 4 . . . . . 3 . . Impact Corruptions 79 | . . . . . 20 37 9 . 2 . . 9 2 . . Robots Melted 4 | . . . . . . . . . 1 . 1 2 . . . Combat Hostiles 4 | . . . . . . . . . 1 . 1 2 . . . Parts Melted 20 | . . . . . . . . . 1 . 2 9 2 6 . Heat Transferred 5038 | . . . . . . . . . 496 50 100 1233 333 2689 137 Parts Sabotaged 5 | . . . . . . . . . . . . . 2 3 . Parts Stolen . | . . . . . . . . . . . . . . . . Parts Stripped . | . . . . . . . . . . . . . . . . Power Chain Reactions 1 | . . . . . . . . . . . . . 1 . . Missiles Intercepted . | . . . . . . . . . . . . . . . . Alert | -11 -10 -9 -8 -8 -8 -7 -6 -5 -5 -4 -4 -4 -3 -3 -3 ------- Run | Scr Mat Mat Mat Gar Mat Fac Fac Fac Gar Fac Gar Fac Res Tes Gar Peak Influence 1342 | 5 182 140 278 602 527 450 294 277 428 435 513 469 1342 1059 861 Initial 749 | . 3 1 59 52 293 168 192 27 14 224 177 268 225 749 740 Average 444 | 1 75 87 145 370 393 294 209 139 259 312 344 246 780 824 801 Maximum Alert Level 4 | . . . 1 2 2 2 1 1 2 2 2 2 4 3 3 Low Security (%) 21 | 100 100 100 71 13 . 21 39 60 34 6 15 35 . . . Level 1 34 | . . . 28 38 43 56 60 39 27 63 38 52 22 . . Level 2 20 | . . . . 48 56 22 . . 37 29 46 12 17 17 . Level 3 19 | . . . . . . . . . . . . . 45 82 100 Level 4 3 | . . . . . . . . . . . . . 15 . . Level 5 . | . . . . . . . . . . . . . . . . High Security . | . . . . . . . . . . . . . . . . Max Security . | . . . . . . . . . . . . . . . . Squads Dispatched 45 | . 1 1 . . 3 5 3 3 . 4 . 7 11 7 . Investigation 5 | . . 1 . . 1 1 . 1 . . . 1 . . . Extermination 24 | . . . . . . 4 2 2 . 2 . 4 6 4 . Reinforcement 7 | . 1 . . . 2 . 1 . . 2 . 1 . . . Assault 9 | . . . . . . . . . . . . 1 5 3 . Garrison . | . . . . . . . . . . . . . . . . Intercept . | . . . . . . . . . . . . . . . . Searches Triggered . | . . . . . . . . . . . . . . . . Construction Impeded . | . . . . . . . . . . . . . . . . Haulers Reinforced . | . . . . . . . . . . . . . . . . Active Scanning Responses . | . . . . . . . . . . . . . . . . Cargo Convoy Interrupts . | . . . . . . . . . . . . . . . . Stealth | -11 -10 -9 -8 -8 -8 -7 -6 -5 -5 -4 -4 -4 -3 -3 -3 --------- Run | Scr Mat Mat Mat Gar Mat Fac Fac Fac Gar Fac Gar Fac Res Tes Gar Distress Signals 16 | . . 1 1 . 3 2 . . . . . . 6 3 . Communications Jammed 47 | . . . . . . . . . . 1 . 11 35 . . Distress Signals 47 | . . . . . . . . . . 1 . 11 35 . . Times Spotted 433 | . 10 11 12 14 34 44 18 15 21 13 13 36 108 70 14 Peak Tracking Total 10 | . 2 10 6 3 7 6 4 8 7 5 5 6 9 8 10 Tactical Retreats 33 | . 1 . . . 3 3 1 2 4 1 . 4 9 5 . Traps | -11 -10 -9 -8 -8 -8 -7 -6 -5 -5 -4 -4 -4 -3 -3 -3 ------- Run | Scr Mat Mat Mat Gar Mat Fac Fac Fac Gar Fac Gar Fac Res Tes Gar Traps Triggered 11 | . . 1 . 1 . 2 1 . 1 . 2 1 2 . . Indirectly . | . . . . . . . . . . . . . . . . Trap Hack Attempts 141 | . . . . . . 69 24 13 . 16 . 19 . . . Triggered 2 | . . . . . . 1 1 . . . . . . . . Disarmed . | . . . . . . . . . . . . . . . . Reprogrammed 14 | . . . . . . 5 1 3 . 3 . 2 . . . Reused 7 | . . . . . . 3 . . . 2 . 1 1 . . Traps Extracted 13 | . . . . . . 5 1 3 . . . 4 . . . Installed 10 | . . . . . . 4 . . . . . 4 2 . . Triggered 8 | . . . . . 1 3 . . . 2 . 1 1 . . Most Traps Carried 4 | . . . . . . 4 1 4 4 4 4 4 2 . . Machines | -11 -10 -9 -8 -8 -8 -7 -6 -5 -5 -4 -4 -4 -3 -3 -3 ---------- Run | Scr Mat Mat Mat Gar Mat Fac Fac Fac Gar Fac Gar Fac Res Tes Gar Machines Disabled 22 | . . . . 1 . 1 2 . 2 5 1 1 4 4 1 Max in Single Turn 5 | . . . . 1 . 1 2 . 1 5 1 1 2 1 1 Garrison Access 6 | . . . . . . 1 1 1 . . . 1 2 . . Garrison Relay 3 | . . . . 1 . . . . 1 . 1 . . . . Machines Sabotaged . | . . . . . . . . . . . . . . . . Garrisons Compromised . | . . . . . . . . . . . . . . . . Overloaded Fab Kills . | . . . . . . . . . . . . . . . . Hacking | -11 -10 -9 -8 -8 -8 -7 -6 -5 -5 -4 -4 -4 -3 -3 -3 --------- Run | Scr Mat Mat Mat Gar Mat Fac Fac Fac Gar Fac Gar Fac Res Tes Gar Machines Accessed 48 | . 3 . 4 . 6 7 7 5 . 4 . 5 6 1 . Terminals 25 | . 3 . 2 . 3 3 4 3 . 1 . 4 2 . . Fabricators 3 | . . . . . . 2 . . . 1 . . . . . Repair Stations 4 | . . . . . 1 . 2 . . . . . 1 . . Recycling Units 2 | . . . 1 . . 1 . . . . . . . . . Scanalyzers 4 | . . . . . 2 . . . . 1 . . 1 . . Garrison Access 10 | . . . 1 . . 1 1 2 . 1 . 1 2 1 . Total Hacks 119 | . 6 . 9 . 24 11 20 12 . 9 . 11 16 1 . Successful 66 | . 3 . 3 . 19 4 10 7 . 5 . 5 9 1 . Failed 52 | . 2 . 6 . 5 7 10 5 . 4 . 6 7 . . Catastrophic 15 | . . . 2 . 1 2 2 2 . 2 . 3 1 . . Database Lockouts 1 | . 1 . . . . . . . . . . . . . . Manual 35 | . 6 . 6 . 7 1 5 4 . . . 4 2 . . Terminals 63 | . 6 . 6 . 8 6 12 8 . 4 . 8 5 . . Fabricators 5 | . . . . . . 3 . . . 2 . . . . . Repair Stations 15 | . . . . . 2 . 7 . . . . . 6 . . Recycling Units 3 | . . . 2 . . 1 . . . . . . . . . Scanalyzers 18 | . . . . . 14 . . . . 2 . . 2 . . Garrison Access 15 | . . . 1 . . 1 1 4 . 1 . 3 3 1 . Terminal Hacks 17 | . 2 . . . 4 1 4 2 . 1 . 2 1 . . Record 1 | . . . . . . . . . . 1 . . . . . Part Schematic 2 | . . . . . 1 . 1 . . . . . . . . Robot Analysis 2 | . 2 . . . . . . . . . . . . . . Prototype ID Bank 1 | . . . . . . . 1 . . . . . . . . Open DSF 1 | . . . . . . . . . . . . 1 . . . Branch Access Points 2 | . . . . . . 1 1 . . . . . . . . Unreport Threat 3 | . . . . . 1 . . . . . . 1 1 . . Locate Traps 1 | . . . . . . . 1 . . . . . . . . Dispatch Records 1 | . . . . . 1 . . . . . . . . . . Registered Components 1 | . . . . . . . . 1 . . . . . . . Zone Layout 2 | . . . . . 1 . . 1 . . . . . . . Fabricator Hacks 3 | . . . . . . 2 . . . 1 . . . . . Load Schematic 2 | . . . . . . 1 . . . 1 . . . . . Build 1 | . . . . . . 1 . . . . . . . . . Repair Station Hacks 9 | . . . . . 2 . 3 . . . . . 4 . . Scan Component 5 | . . . . . 1 . 2 . . . . . 2 . . Repair 4 | . . . . . 1 . 1 . . . . . 2 . . Recycling Unit Hacks 1 | . . . 1 . . . . . . . . . . . . Report Inventory 1 | . . . 1 . . . . . . . . . . . . Scanalyzer 14 | . . . . . 12 . . . . 2 . . . . . Insert Component 7 | . . . . . 6 . . . . 1 . . . . . Analyze 7 | . . . . . 6 . . . . 1 . . . . . Garrison Access Hacks 13 | . . . 1 . . 1 1 3 . 1 . 2 3 1 . Unlock Access 4 | . . . 1 . . . . 1 . 1 . . . 1 . Seal Access 6 | . . . . . . 1 1 1 . . . 1 2 . . Coupler Status 3 | . . . . . . . . 1 . . . 1 1 . . Unauthorized Hacks 9 | . 1 . 1 . 1 . 2 2 . . . 1 1 . . Terminals 8 | . 1 . 1 . 1 . 2 1 . . . 1 1 . . Assimilate 4 | . 1 . . . 1 . . . . . . 1 1 . . Botnet 4 | . . . 1 . . . 2 1 . . . . . . . Fabricators . | . . . . . . . . . . . . . . . . Repair Stations . | . . . . . . . . . . . . . . . . Recycling Units . | . . . . . . . . . . . . . . . . Scanalyzers . | . . . . . . . . . . . . . . . . Garrison Access 1 | . . . . . . . . 1 . . . . . . . Restock 1 | . . . . . . . . 1 . . . . . . . Data Cores Recovered . | . . . . . . . . . . . . . . . . Used . | . . . . . . . . . . . . . . . . Hacking Detections 40 | . 4 . 4 . 6 4 6 4 . 3 . 4 4 1 . Full Trace Events 2 | . . . . . . . . 1 . . . 1 . . . Feedback Events . | . . . . . . . . . . . . . . . . Feedback Blocked . | . . . . . . . . . . . . . . . . Robot Schematics Acquired . | . . . . . . . . . . . . . . . . Robots Built . | . . . . . . . . . . . . . . . . Authchips . | . . . . . . . . . . . . . . . . Time . | . . . . . . . . . . . . . . . . Total Robot Build Rating . | . . . . . . . . . . . . . . . . Part Schematics Acquired 8 | . . . . . 6 . 1 . . 1 . . . . . Parts Built 2 | . . . . . . 2 . . . . . . . . . Authchips 1 | . . . . . . 1 . . . . . . . . . Time 20 | . . . . . . 20 . . . . . . . . . Total Part Build Rating 4 | . . . . . . 4 . . . . . . . . . Parts Repaired 4 | . . . . . 1 . 1 . . . . . 2 . . Time 175 | . . . . . 44 . 19 . . . . . 112 . . Parts Recycled . | . . . . . . . . . . . . . . . . Recycled Matter . | . . . . . . . . . . . . . . . . Retrieved Matter . | . . . . . . . . . . . . . . . . Retrieved Components . | . . . . . . . . . . . . . . . . Parts Scanalyzed 6 | . . . . . 5 . . . . 1 . . . . . Part Schematics Acquired 6 | . . . . . 5 . . . . 1 . . . . . Parts Damaged 2 | . . . . . 1 . . . . 1 . . . . . Bothacking | -11 -10 -9 -8 -8 -8 -7 -6 -5 -5 -4 -4 -4 -3 -3 -3 ------------ Run | Scr Mat Mat Mat Gar Mat Fac Fac Fac Gar Fac Gar Fac Res Tes Gar Used RIF Installer 3 | . . . . 1 . . . . 1 . 1 . . . . Signal Jammer 1 | . . . . . . . . . 1 . . . . . . Program Shield 1 | . . . . . . . . . . . 1 . . . . Robots Hacked 35 | . . . . . . 1 2 1 6 6 2 4 13 . . Non-combat 8 | . . . . . . 1 1 . . 2 . 3 1 . . Combat 27 | . . . . . . . 1 1 6 4 2 1 12 . . Robot Hacks Applied 39 | . . . . . . 2 2 2 6 7 2 4 14 . . no_distress 1 | . . . . . . . . . . . . 1 . . . map_walls 1 | . . . . . . . . . . 1 . . . . . find_fabricator 1 | . . . . . . 1 . . . . . . . . . find_dsf 1 | . . . . . . 1 . . . . . . . . . drop_inventory 1 | . . . . . . . 1 . . . . . . . . deconstruct_bot 1 | . . . . . . . . . . . . . 1 . . purge_threat 1 | . . . . . . . . . . 1 . . . . . find_garrison 2 | . . . . . . . . 1 . 1 . . . . . link_fov 1 | . . . . . . . . . . . . 1 . . . overload_power 1 | . . . . . . . . . . . . 1 . . . amplify_resonance 1 | . . . . . . . . . . . . 1 . . . wipe_record 1 | . . . . . . . . . . . . . 1 . . reboot_system 7 | . . . . . . . . 1 . 3 . . 3 . . overwrite_iff 14 | . . . . . . . 1 . 5 1 . . 7 . . streamctrl_low 1 | . . . . . . . . . . . . . 1 . . streamctrl_high 1 | . . . . . . . . . 1 . . . . . . formatsys_high 3 | . . . . . . . . . . . 2 . 1 . . Relay Couplers Released 24 | . . . . 4 . 3 3 . 5 . 3 2 4 . . Machine Destruction 18 | . . . . 4 . . . . 5 . 3 2 4 . . Programmers 6 | . . . . . . 3 3 . . . . . . . . Attached 14 | . . . . . . . 2 1 3 1 2 1 4 . . Fabnet Peak Effective % . | . . . . . . . . . . . . . . . . Robots Rewired . | . . . . . . . . . . . . . . . . Allies Hacked . | . . . . . . . . . . . . . . . . Hacks Repelled . | . . . . . . . . . . . . . . . . Allies | -11 -10 -9 -8 -8 -8 -7 -6 -5 -5 -4 -4 -4 -3 -3 -3 -------- Run | Scr Mat Mat Mat Gar Mat Fac Fac Fac Gar Fac Gar Fac Res Tes Gar Total Allies 20 | . . . . . . . 1 . 6 1 2 . 10 . . Largest Group 2 | . . . . . . . 1 . 1 1 2 . 2 . . Highest-Rated Group 98 | . . . . . . . 29 . 47 47 98 . 94 . . Highest-Rated Ally 64 | . . . . . . . 29 . 47 47 49 . 64 . . Total Orders 10 | . . . . . . . . . . . . 9 1 . . AID 1 | . . . . . . . . . . . . . 1 . . EXPLORE 6 | . . . . . . . . . . . . 6 . . . RETURN 3 | . . . . . . . . . . . . 3 . . . Ally Attacks 60 | . . . . . . . 6 . 21 4 7 . 22 . . Total Damage 1545 | . . . . . . . 74 . 443 117 241 . 670 . . Kills 4 | . . . . . . . . . 3 . . . 1 . . Allies Corrupted 1 | . . . . . . . 1 . . . . . . . . Allies Melted . | . . . . . . . . . . . . . . . . Intel | -11 -10 -9 -8 -8 -8 -7 -6 -5 -5 -4 -4 -4 -3 -3 -3 ------- Run | Scr Mat Mat Mat Gar Mat Fac Fac Fac Gar Fac Gar Fac Res Tes Gar Robot Analysis Total 2 | . 2 . . . . . . . . . . . . . . Derelict Logs Recovered . | . . . . . . . . . . . . . . . . Drone Launches 6 | . . . . . . . . . . . . 6 . . . Drone Recoveries 4 | . . . . . . . . . . . . 4 . . . Exploration | -11 -10 -9 -8 -8 -8 -7 -6 -5 -5 -4 -4 -4 -3 -3 -3 ------------- Run | Scr Mat Mat Mat Gar Mat Fac Fac Fac Gar Fac Gar Fac Res Tes Gar Turns Passed 18444 | 87 521 345 518 1023 1664 2414 1261 967 598 512 398 1838 4432 1748 118 Spaces Moved 9404 | 64 198 236 249 501 811 1253 776 576 308 290 270 999 2100 730 43 Core 16 | 9 . . . . . . . . . . . . . . 7 Treads 2334 | . . . . 234 570 840 . . . . . . 235 455 . Legs 6020 | 55 198 236 249 267 . 413 776 576 308 290 270 523 1548 275 36 Wheels 1034 | . . . . . 241 . . . . . . 476 317 . . Hover . | . . . . . . . . . . . . . . . . Flight . | . . . . . . . . . . . . . . . . Fastest Speed 50 | 50 120 120 120 160 120 125 122 122 120 116 114 111 115 120 50 Average Speed 138 | 110 178 120 147 176 148 145 124 122 130 116 115 126 133 162 167 Slowest Speed 260 | 120 190 120 190 260 160 225 195 122 192 121 184 190 190 240 190 Overloaded Moves . | . . . . . . . . . . . . . . . . Propulsion Burnouts . | . . . . . . . . . . . . . . . . Robots Hopped . | . . . . . . . . . . . . . . . . Cave-ins Triggered . | . . . . . . . . . . . . . . . . Exploration Rate (%) 30 | 6 37 20 26 53 42 34 19 13 46 10 41 20 48 51 17 Regions Visited 15 Branch Regions 1 Pre-discovered Areas . | . . . . . . . . . . . . . . . . Known Exits Taken 4 | . . . 1 . . . . 1 . 1 . . . 1 . Unknown Exits Taken 8 | 1 1 1 . . 1 1 1 . . . . 1 1 . . Scrap Searched . | . . . . . . . . . . . . . . . . Spaces Dug 81 | . . . . . . 4 2 13 . . . 26 32 4 . Terrain Destroyed 351 | . . . 3 . . 16 36 29 1 49 17 59 117 7 17 Melee 34 | . . . . . . 4 2 13 . . . 2 9 4 . Projectile 63 | . . . 3 . . 12 4 . 1 . 3 23 14 3 . AOE 254 | . . . . . . . 30 16 . 49 14 34 94 . 17 Terrain Rammed . | . . . . . . . . . . . . . . . . Walls Destroyed . | . . . . . . . . . . . . . . . . Machines Disabled . | . . . . . . . . . . . . . . . . Actions | -11 -10 -9 -8 -8 -8 -7 -6 -5 -5 -4 -4 -4 -3 -3 -3 --------- Run | Scr Mat Mat Mat Gar Mat Fac Fac Fac Gar Fac Gar Fac Res Tes Gar Total 13134 | 75 283 290 338 577 1134 1645 987 786 437 440 326 1404 3312 1021 79 Wait 1444 | . 21 19 24 22 168 113 51 107 46 63 3 164 591 35 17 Move 9390 | 63 197 235 249 499 810 1252 775 576 306 290 268 998 2099 730 43 Hop . | . . . . . . . . . . . . . . . . Pick Up 240 | 4 13 9 11 6 18 19 25 15 4 11 5 15 62 23 . Fast Attach 186 | 7 1 3 3 3 7 12 3 7 5 5 7 32 59 32 . Attach 110 | . 1 2 1 1 5 8 13 6 3 5 3 4 32 23 3 Detach 34 | . 1 2 . . 1 1 1 1 1 2 1 2 12 8 1 Swap 267 | . 2 1 5 6 12 34 23 11 16 9 13 33 90 6 6 Drop 269 | . 4 11 10 6 25 21 20 14 9 13 5 33 79 19 . Fire 406 | 1 41 7 31 33 35 39 4 2 12 4 16 54 83 35 9 Melee 599 | . . . . 1 48 69 48 34 34 22 3 44 187 109 . Ram 1 | . . . . . 1 . . . . . . . . . . Kick 27 | . 2 1 4 . . . . . 1 . . 2 16 1 . Crush 8 | . . . . . 4 4 . . . . . . . . . Escape Stasis 2 | . . . . . . . . . . . 2 . . . . Rewire . | . . . . . . . . . . . . . . . . Trap 151 | . . . . . . 73 24 13 . 16 . 23 2 . . Miscellaneous . | . . . . . . . . . . . . . . . . Route ------- -11/Scrapyard -10/Materials (discovered 2 exits: [*Mat] / [*Min]) -9/Materials -8/Materials (discovered 2 exits: *Fac / Gar) -8/Garrison (discovered 3 exits: *Mat x3) -8/Materials -7/Factory (discovered 4 exits: *Fac / Sto / *Low x2) -6/Factory (discovered 4 exits: *Fac x2 / Low x2) -5/Factory -5/Garrison -4/Factory -4/Garrison -4/Factory (discovered 3 exits: *Res x2 / [*Ext]) -3/Research -3/Testing -3/Garrison History --------- Turn | Location | Event 5 | -11/Scrapyard | Discovered new exit (range 15) 88 | -11/Scrapyard | Entered Materials 316 | -10/Materials | Build established: Mutant 361 | -10/Materials | Discovered new exit (range 15) 487 | -10/Materials | Central database locked down 556 | -10/Materials | Discovered new exit (range 14) 609 | -10/Materials | Entered another Materials area 609 | -9/Materials | Evolved 2 slots: Propulsion x2 917 | -9/Materials | Build established: Scavenger-Mutant 934 | -9/Materials | Discovered new exit (range 3) 954 | -9/Materials | Entered another Materials area 954 | -8/Materials | Evolved 2 slots: Propulsion x1, Utility x1 1340 | -8/Materials | Discovered new exit (range 16) 1472 | -8/Materials | Identified exit to Garrison 1472 | -8/Materials | Entered Garrison 1576 | -8/Garrison | Triggered checkpoint 1829 | -8/Garrison | Spotted B-75 Beast 1831 | -8/Garrison | Spotted B-75 Beast 1916 | -8/Garrison | Triggered checkpoint 1922 | -8/Garrison | Triggered checkpoint 1935 | -8/Garrison | Discovered new exit (range 10) 2038 | -8/Garrison | Triggered checkpoint 2120 | -8/Garrison | Lost 3 parts (3n) 2191 | -8/Garrison | Discovered new exit (range 15) 2288 | -8/Garrison | Triggered checkpoint 2341 | -8/Garrison | Discovered new exit (range 9) 2373 | -8/Garrison | Installed Relay Interface Framework 2410 | -8/Garrison | Triggered checkpoint 2441 | -8/Garrison | Garrison Relay disabled 2495 | -8/Garrison | Entered Materials 2945 | -8/Materials | Discovered new exit (range 15) 3442 | -8/Materials | Core integrity fell below 50% 3552 | -8/Materials | Repaired Med. Treads 3590 | -8/Materials | Build established: Mutant 4159 | -8/Materials | Entered Factory 4159 | -7/Factory | Evolved 2 slots: Utility x2 4460 | -7/Factory | Discovered new exit (range 16) 5073 | -7/Factory | Fabricated Trap Extractor (x2) 5861 | -7/Factory | Lost 3 parts (1p1n1w) 5891 | -7/Factory | Discovered new exit (range 9) 5978 | -7/Factory | System corruption reached 10% 6004 | -7/Factory | System corruption reached 30% 6519 | -7/Factory | Identified exit to Storage 6519 | -7/Factory | Identified exit to Lower Caves 6573 | -7/Factory | Entered another Factory area 6573 | -6/Factory | Evolved 2 slots: Utility x1, Weapon x1 6618 | -6/Factory | Repaired Carbon-fiber Leg 6752 | -6/Factory | Discovered new exit (range 10) 7082 | -6/Factory | Lost 3 parts (1n2u) 7309 | -6/Factory | Build established: Scavenger-Mutant 7638 | -6/Factory | Identified exit to Lower Caves 7810 | -6/Factory | Discovered new exit (range 16) 7827 | -6/Factory | System corruption reached 10% 7834 | -6/Factory | Entered another Factory area 7834 | -5/Factory | Evolved 2 slots: Utility x2 7870 | -5/Factory | Destroyed 7 combat bots 8325 | -5/Factory | Lost 3 parts (1n1u1w) 8801 | -5/Factory | Identified exit to Garrison 8801 | -5/Factory | Entered Garrison 8808 | -5/Garrison | Expanded RIF knowledge: Signal Jamming 8874 | -5/Garrison | Triggered checkpoint 8975 | -5/Garrison | Garrison Relay disabled 9322 | -5/Garrison | Triggered checkpoint 9386 | -5/Garrison | Discovered new exit (range 10) 9399 | -5/Garrison | Entered Factory 9399 | -4/Factory | Evolved 2 slots: Power x1, Propulsion x1 9911 | -4/Factory | Identified exit to Garrison 9911 | -4/Factory | Entered Garrison 9917 | -4/Garrison | Expanded RIF knowledge: Program Shield 9954 | -4/Garrison | Triggered checkpoint 9972 | -4/Garrison | Garrison Relay disabled 10036 | -4/Garrison | Triggered checkpoint 10073 | -4/Garrison | Spotted B-86 Titan 10112 | -4/Garrison | Destroyed B-86 Titan 10271 | -4/Garrison | Discovered new exit (range 15) 10309 | -4/Garrison | Entered Factory 10657 | -4/Factory | Build established: Bothacker-Mutant 10774 | -4/Factory | Lost 7 parts (1p4n2u) 10940 | -4/Factory | Discovered new exit (range 46) 11698 | -4/Factory | Build established: Scavenger-Mutant 11740 | -4/Factory | Discovered new exit (range 13) 12059 | -4/Factory | First assault squad dispatched 12096 | -4/Factory | Lost 4 parts (1p1u2w) 12131 | -4/Factory | Build established: Bothacker-Mutant 12143 | -4/Factory | Discovered new exit (range 15) 12147 | -4/Factory | Entered Research 12147 | -3/Research | Evolved 2 slots: Utility x2 12897 | -3/Research | First assault squad dispatched 13090 | -3/Research | Found Prototype Device 13090 | -3/Research | Identified Exp. Thermal Shield 14110 | -3/Research | Spotted B-86 Titan 14211 | -3/Research | Build established: Scavenger-Mutant 14214 | -3/Research | Found Enh. Force Lance 14217 | -3/Research | Found Enh. Force Lance 14262 | -3/Research | System corruption reached 10% 14528 | -3/Research | Lost 6 parts (4n2u) 14623 | -3/Research | Destroyed B-86 Titan 15117 | -3/Research | Lost 5 parts (1p3n1u) 15207 | -3/Research | Spotted B-86 Titan 15687 | -3/Research | Repaired Flexi-carbon Leg 15751 | -3/Research | Repaired Adv. Hardlight Generator 15899 | -3/Research | Lost 4 parts (1p2n1u) 15915 | -3/Research | Found Prototype Slashing Weapon 15915 | -3/Research | Identified Centrium Greatsword 15918 | -3/Research | Found Centrium Greatsword 15922 | -3/Research | Found Centrium Greatsword 16044 | -3/Research | System corruption reached 30% 16086 | -3/Research | Found Hvy. Reflective Plating 16089 | -3/Research | Found Hvy. Reflective Plating 16096 | -3/Research | Destroyed 7 combat bots 16100 | -3/Research | Lost 11 parts (2p4n4u1w) 16199 | -3/Research | Build established: Scavenger-Gladiator 16535 | -3/Research | Discovered new exit (range 5) 16579 | -3/Research | Entered Testing 16677 | -3/Testing | Found Prototype Energy Cannon 16677 | -3/Testing | Identified Null Cannon 16802 | -3/Testing | Core integrity fell below 50% 16965 | -3/Testing | Found Enh. Force Lance 17069 | -3/Testing | Spotted Striker 17069 | -3/Testing | Spotted Striker 17360 | -3/Testing | First assault squad dispatched 17518 | -3/Testing | Build established: Scavenger-Mutant 17803 | -3/Testing | Lost 11 parts (2p4n4u1w) 18099 | -3/Testing | Found Prototype Launcher 18100 | -3/Testing | Identified Z-bomb Delivery System 18117 | -3/Testing | Core integrity fell below 20% 18327 | -3/Testing | Identified exit to Garrison 18327 | -3/Testing | Entered Garrison 18373 | -3/Garrison | Triggered checkpoint 18414 | -3/Garrison | Spotted B-86 Titan 18441 | -3/Garrison | Released all parts (17) 18442 | -3/Garrison | Triggered checkpoint 18445 | -3/Garrison | Destroyed by S-43 Plague with Heavy Machine Gun Last Messages --------------- 18440_ Slug penetrates Wall. 18440_ Flexi-carbon Leg destroyed. 18441_ Released Particle Reactor. 18441_ Released Imp. Heavy Treads. 18441_ Released Flexi-carbon Leg. 18441_ Released Centrium Medium Armor Plating. 18441_ Released Flexi-carbon Leg. 18441_ Released Adv. Heat Sink. 18441_ Released Adv. Weapon Cycler. 18441_ Released Adv. Target Analyzer. 18441_ Released Hcp. Storage Unit. 18441_ Released Adv. Energy Well. 18441_ Released Particle Reactor. 18441_ Released Adv. Heat Sink. 18441_ Released Null Cannon. 18441_ Released Adv. Matter Compressor. 18441_ Released Hardcell Cannon. 18441_ Released Phase Gun. 18441_ Phase Gun crushed and broken. [Achievement: Overachiever] Map ----- +----------------------------------------------------+ | ?????????????????????????????????????????????????? | | ?????????????????????????????????????????????????? | | ?????????????????????????????????????????????????? | | ?????????????????????????????????????????????????? | | ?????????????????????????????????????????????????? | | ?????????????????????????????????????? ??????????? | | ?????????????????????????????????????? ??????????? | | ?????????????????????????????????????? ??????????? | | ?????????????????????????????????????? ??????????? | | ?????????????????????????????????????? ??????????? | | ?????????????????????????????????????? #?????????? | | ?????????????????????????????????????? #?????????? | | ?????????????????????????????????????# #?????????? | | ?????????????????????????????????????# ?????????? | | ?????????????????????????????????????# #?????????? | | ?????????????????????????????????????# #?????????? | | ?????????????????????????????????????# #???#####?? | | ?????????????????????????????????????# #???# #?? | | ???????????????????????????????????### ##### #?? | | ?????????????????????????##????????# #?? | | ?????????????????????????? ????????# #?? | | ?????????????????????????# ????????# ##########?? | | ??????????????????####???# ????????# #??????????? | | ??????????????????# ??# #####???# #??????????? | | ??????????????# ## ### #!/##??# #??????????? | | ?????????????# @ ##=!####] #??????????? | | ?????????????# !/]!=*=%*!]#??????????? | | ?????????????# *!]!!=]*! #??????????? | | ?????????????# ## # !#*#######??????????? | | ?????????????#????# g #####????????????????? | | ???????????????? g g ????????????????????? | | ?????????????? BB s???????????????????? | | ?????????????" B s???????????????????? | | ?????????????" h s#??????????????????? | | ?????????????# ## ## ###??????????????????? | | ?????????????? ??# ?# #????????????????????? | | ?????????????? ??? ? ????????????????????? | | ????????????????? ?? ????????????????????? | | ????????????????? ? #????????????????????? | | ???????????????????""??## ##????????????????????? | | ????????????????????????# ??????????????????????? | | ????????????????????????? ??????????????????????? | | ?????????????????????????????????????????????????? | | ?????????????????????????????????????????????????? | | ?????????????????????????????????????????????????? | | ?????????????????????????????????????????????????? | | ?????????????????????????????????????????????????? | | ?????????????????????????????????????????????????? | | ?????????????????????????????????????????????????? | | ?????????????????????????????????????????????????? | +----------------------------------------------------+ Best States ------------- Heat Dissipation 122 Coolant Potential 100 Energy Generation 43 Energy Capacity 1580 Matter Stores 550 Matter Capacity 700 Sight Range 16 Terrain Scan Range 20 Terrain Scan Density 10 Jamming Range 16 Cloak Strength 2 Corruption Containment 12 Armor Coverage 1200 Resistance: TH 30 Core Shielding 30 Propulsion Shielding 66 Weapon Shielding 33 Weapon Cycling 25 Melee Speed Boost 30 Evasion (%) 61 Targeting Accuracy 8 Target Analysis 12 Recoil Reduction 6 Kinecelleration 30 Force Boost 20 Defensive Hacking 10 Relay Coupler Types 5 Relay Coupler Value 86 Authchip Count 2 Trap Extractor Capacity 4 Item Schematics ----------------- Lrn. Tractor Beam | -8/Materials | Scanalyzed Seismic Detector | -8/Materials | Scanalyzed Weapon Cycler | -8/Materials | Scanalyzed Trap Scanner | -8/Materials | Scanalyzed Lyr. Light Armor Plating | -8/Materials | Scanalyzed Trap Extractor | -8/Materials | Hacked Imp. Fusion Compressor | -6/Factory | Hacked Exp. Flexi-carbon Leg | -4/Factory | Scanalyzed Robot Schematics ------------------ None Fabricated ------------ Trap Extractor | x2 | -7/Factory | Authchip Alien Tech Used ----------------- None Achievements -------------- Hard Hitter Overachiever Challenges ------------ None Game ------ Seed DecoyTargetingCharger Manual? 0 Play Time 05:28:29 Cumulative 305.6 hours Start 2022.04.09 @ 07:20:24 End 2022.04.10 @ 11:02:44 Sessions 5 Manual Loads 0 Difficulty Rogue Special Mode None Game No. 223 Rogue 223 Adventurer 0 Explorer 0 Win Type - Total 2 Types 2/0/0/0/0/0/0/0/0 Lore% 59 Gallery% 72 Achievement% 50 Wizard Run 0 Options --------- ASCII 0 Keyboard 0 Movement Arrows Keybinds 0 Fullscreen 1 Font 18/SmallcapsGlow Map View 76x50 Tactical HUD 1 Map Filters NONE Filters NONE Steam 1 RUN: 4177dd0e-c297-4674-b376-9b70f0792889